[Event "Early-Titled-Tuesday-Blitz-February-13-2024"]
[Site "Chess.com"]
[Date "2024.02.13"]
[Round "3"]
[White "kushbhagat2009"]
[Black "Slovineanu"]
[Result "1-0"]
[WhiteElo "2629"]
[BlackElo "2437"]
[TimeControl "180+1"]
[EndTime "8:29:53 PST"]
[Termination "kushbhagat2009 won by resignation"]

1. d4 {[%clk 0:03:00.9]} 1... Nf6 {[%clk 0:02:59.6]} 2. Bf4 {[%clk 0:02:57.2]}
2... d5 {[%clk 0:02:59.2]} 3. e3 {[%clk 0:02:57]} 3... e6 {[%clk 0:02:59.3]} 4.
Nf3 {[%clk 0:02:53.6]} 4... c5 {[%clk 0:02:59.8]} 5. c3 {[%clk 0:02:47]} 5...
Bd6 {[%clk 0:02:59.4]} 6. Bd3 {[%clk 0:02:47.1]} 6... cxd4 {[%clk 0:02:52]} 7.
Bxd6 {[%clk 0:02:37.6]} 7... Qxd6 {[%clk 0:02:51.9]} 8. exd4 {[%clk 0:02:37.7]}
8... Nc6 {[%clk 0:02:48.5]} 9. O-O {[%clk 0:02:37.1]} 9... O-O {[%clk
0:02:47.7]} 10. Nbd2 {[%clk 0:02:37]} 10... e5 {[%clk 0:02:46.7]} 11. dxe5
{[%clk 0:02:35.9]} 11... Nxe5 {[%clk 0:02:47.1]} 12. Nxe5 {[%clk 0:02:36.2]}
12... Qxe5 {[%clk 0:02:47.6]} 13. Nf3 {[%clk 0:02:36.9]} 13... Qd6 {[%clk
0:02:39.6]} 14. h3 {[%clk 0:02:33.7]} 14... Bd7 {[%clk 0:02:37.2]} 15. Re1
{[%clk 0:02:33.1]} 15... Rfe8 {[%clk 0:02:37]} 16. Qc2 {[%clk 0:02:31.8]} 16...
h6 {[%clk 0:02:36.3]} 17. Nd4 {[%clk 0:02:30.7]} 17... a6 {[%clk 0:02:34.7]} 18.
Bf5 {[%clk 0:02:29.2]} 18... g6 {[%clk 0:02:16.5]} 19. Bxg6 {[%clk 0:02:24.2]}
19... fxg6 {[%clk 0:02:10]} 20. Qxg6+ {[%clk 0:02:25.1]} 20... Kh8 {[%clk
0:02:07]} 21. Qxh6+ {[%clk 0:02:20.8]} 21... Kg8 {[%clk 0:02:06.5]} 22. Qg6+
{[%clk 0:02:18.4]} 22... Kh8 {[%clk 0:02:06.7]} 23. Nf3 {[%clk 0:02:07]} 23...
Ne4 {[%clk 0:01:02.5]} 24. Qh5+ {[%clk 0:02:05.4]} 24... Kg7 {[%clk 0:01:02.7]}
25. Rad1 {[%clk 0:02:04.2]} 25... Bc6 {[%clk 0:00:59.4]} 26. Nd4 {[%clk
0:01:45.6]} 26... Re5 {[%clk 0:00:52.4]} 27. Nf5+ {[%clk 0:01:33.6]} 27... Rxf5
{[%clk 0:00:52.6]} 28. Qxf5 {[%clk 0:01:34.5]} 28... Rf8 {[%clk 0:00:52.4]} 29.
Qxe4 {[%clk 0:01:33.3]} 1-0

[Event "Early-Titled-Tuesday-Blitz-February-13-2024"]
[Site "Chess.com"]
[Date "2024.02.13"]
[Round "3"]
[White "Alexei_Kornev"]
[Black "HansOnTwitch"]
[Result "0-1"]
[WhiteElo "2694"]
[BlackElo "3164"]
[TimeControl "180+1"]
[EndTime "8:29:57 PST"]
[Termination "HansOnTwitch won by checkmate"]

1. e4 {[%clk 0:03:00.9]} 1... c5 {[%clk 0:02:56.6]} 2. Nf3 {[%clk 0:03:00.4]}
2... d6 {[%clk 0:02:57]} 3. d4 {[%clk 0:03:00.4]} 3... cxd4 {[%clk 0:02:57.9]}
4. Nxd4 {[%clk 0:03:00.8]} 4... Nf6 {[%clk 0:02:58.4]} 5. Nc3 {[%clk 0:03:01.3]}
5... a6 {[%clk 0:02:59.1]} 6. Be3 {[%clk 0:03:01.1]} 6... e5 {[%clk 0:02:58.5]}
7. Nb3 {[%clk 0:03:00.9]} 7... Be6 {[%clk 0:02:57.7]} 8. f3 {[%clk 0:03:01.5]}
8... h5 {[%clk 0:02:58.1]} 9. Qd2 {[%clk 0:03:01.8]} 9... Nbd7 {[%clk
0:02:56.5]} 10. O-O-O {[%clk 0:03:02.3]} 10... Rc8 {[%clk 0:02:52.9]} 11. Nd5
{[%clk 0:03:02.6]} 11... Nxd5 {[%clk 0:02:52]} 12. exd5 {[%clk 0:03:03.5]} 12...
Bf5 {[%clk 0:02:52.7]} 13. Bd3 {[%clk 0:03:03.6]} 13... Bxd3 {[%clk 0:02:52.9]}
14. Qxd3 {[%clk 0:03:04.5]} 14... Be7 {[%clk 0:02:53.6]} 15. Kb1 {[%clk
0:03:04.3]} 15... O-O {[%clk 0:02:50.3]} 16. g4 {[%clk 0:03:03.5]} 16... hxg4
{[%clk 0:02:49.4]} 17. fxg4 {[%clk 0:03:04.4]} 17... Bg5 {[%clk 0:02:49.9]} 18.
Bf2 {[%clk 0:03:04.3]} 18... Qc7 {[%clk 0:02:41]} 19. h4 {[%clk 0:03:02.1]}
19... Bf4 {[%clk 0:02:41.1]} 20. Rhe1 {[%clk 0:02:47.1]} 20... Qc4 {[%clk
0:02:39.3]} 21. Na5 {[%clk 0:02:29.6]} 21... Qc7 {[%clk 0:02:25.4]} 22. Nb3
{[%clk 0:02:28.9]} 22... Nf6 {[%clk 0:02:25.1]} 23. g5 {[%clk 0:02:20.7]} 23...
Nxd5 {[%clk 0:02:24]} 24. Qxd5 {[%clk 0:02:03]} 24... Qxc2+ {[%clk 0:02:23.2]}
25. Ka1 {[%clk 0:02:03.7]} 25... Qxf2 {[%clk 0:02:23.9]} 26. g6 {[%clk
0:02:04.1]} 26... Rc2 {[%clk 0:02:08.6]} 27. Qxd6 {[%clk 0:01:32]} 27... Rxb2
{[%clk 0:01:55.4]} 28. Qa3 {[%clk 0:01:31.6]} 28... Re2 {[%clk 0:01:46.4]} 29.
Rg1 {[%clk 0:01:27.6]} 29... e4 {[%clk 0:01:26.4]} 30. gxf7+ {[%clk 0:01:04.2]}
30... Rxf7 {[%clk 0:01:24.6]} 31. Qc5 {[%clk 0:00:47.2]} 31... Rxa2+ {[%clk
0:01:23.3]} 32. Kb1 {[%clk 0:00:47.1]} 32... Qb2# {[%clk 0:01:24.2]} 0-1

[Event "Early-Titled-Tuesday-Blitz-February-13-2024"]
[Site "Chess.com"]
[Date "2024.02.13"]
[Round "3"]
[White "tantaan"]
[Black "blitzking1729"]
[Result "0-1"]
[WhiteElo "2495"]
[BlackElo "2714"]
[TimeControl "180+1"]
[EndTime "8:29:59 PST"]
[Termination "blitzking1729 won by resignation"]

1. e4 {[%clk 0:03:00.9]} 1... c5 {[%clk 0:02:58.7]} 2. Nc3 {[%clk 0:03:00.3]}
2... a6 {[%clk 0:02:57.6]} 3. g3 {[%clk 0:02:55.2]} 3... b5 {[%clk 0:02:57.6]}
4. Bg2 {[%clk 0:02:55.3]} 4... Bb7 {[%clk 0:02:58.5]} 5. d3 {[%clk 0:02:39.9]}
5... e6 {[%clk 0:02:58.5]} 6. Nh3 {[%clk 0:02:40.2]} 6... d6 {[%clk 0:02:56.8]}
7. O-O {[%clk 0:02:36.7]} 7... Nf6 {[%clk 0:02:56.5]} 8. f4 {[%clk 0:02:36.7]}
8... h5 {[%clk 0:02:51]} 9. f5 {[%clk 0:02:24.1]} 9... e5 {[%clk 0:02:49.1]} 10.
Bg5 {[%clk 0:02:22]} 10... Nbd7 {[%clk 0:02:49]} 11. a4 {[%clk 0:02:14]} 11...
b4 {[%clk 0:02:41.8]} 12. Nd5 {[%clk 0:02:14]} 12... Bxd5 {[%clk 0:02:41.5]} 13.
exd5 {[%clk 0:02:13.9]} 13... Be7 {[%clk 0:02:42.1]} 14. c3 {[%clk 0:02:11.5]}
14... a5 {[%clk 0:02:40.2]} 15. d4 {[%clk 0:02:09.8]} 15... bxc3 {[%clk
0:02:36.7]} 16. bxc3 {[%clk 0:02:09.7]} 16... cxd4 {[%clk 0:02:36.3]} 17. cxd4
{[%clk 0:02:09.5]} 17... Ng4 {[%clk 0:02:36.1]} 18. Bxe7 {[%clk 0:02:05.8]}
18... Qxe7 {[%clk 0:02:36]} 19. Re1 {[%clk 0:01:48.6]} 19... O-O {[%clk
0:02:33.5]} 20. Nf4 {[%clk 0:01:39.6]} 20... Qg5 {[%clk 0:02:28.5]} 21. dxe5
{[%clk 0:01:22.7]} 21... Ndxe5 {[%clk 0:02:21.8]} 22. Be4 {[%clk 0:01:05.7]}
22... h4 {[%clk 0:02:21.7]} 23. Nh3 {[%clk 0:01:01.5]} 23... Qh6 {[%clk
0:02:15.1]} 24. Qc1 {[%clk 0:00:58.7]} 24... hxg3 {[%clk 0:02:13.1]} 25. Qxh6
{[%clk 0:00:54.3]} 25... gxh2+ {[%clk 0:02:13.4]} 26. Kg2 {[%clk 0:00:54.3]}
26... gxh6 {[%clk 0:02:04.8]} 27. Ra3 {[%clk 0:00:51]} 27... Kg7 {[%clk
0:02:03.4]} 28. Rg3 {[%clk 0:00:50.3]} 28... h5 {[%clk 0:01:59.6]} 29. Bf3
{[%clk 0:00:49.4]} 29... Kf6 {[%clk 0:01:57.7]} 30. Nf4 {[%clk 0:00:47.2]} 30...
Rh8 {[%clk 0:01:57.1]} 31. Nxh5+ {[%clk 0:00:42]} 31... Rxh5 {[%clk 0:01:56.2]}
32. Bxg4 {[%clk 0:00:42.4]} 32... h1=Q+ {[%clk 0:01:50.8]} 33. Rxh1 {[%clk
0:00:41.9]} 33... Rxh1 {[%clk 0:01:51.4]} 34. Kxh1 {[%clk 0:00:42.1]} 34... Rg8
{[%clk 0:01:51.9]} 0-1

[Event "Early-Titled-Tuesday-Blitz-February-13-2024"]
[Site "Chess.com"]
[Date "2024.02.13"]
[Round "3"]
[White "Goryachkina"]
[Black "LionelMessiFCB"]
[Result "1-0"]
[WhiteElo "2699"]
[BlackElo "2490"]
[TimeControl "180+1"]
[EndTime "8:30:06 PST"]
[Termination "Goryachkina won by resignation"]

1. e4 {[%clk 0:02:59.1]} 1... c5 {[%clk 0:02:56.1]} 2. Nf3 {[%clk 0:02:59]} 2...
d6 {[%clk 0:02:54.9]} 3. d4 {[%clk 0:02:58.9]} 3... cxd4 {[%clk 0:02:55.8]} 4.
Nxd4 {[%clk 0:02:59.7]} 4... Nf6 {[%clk 0:02:56.1]} 5. Nc3 {[%clk 0:02:59.8]}
5... a6 {[%clk 0:02:56.3]} 6. a4 {[%clk 0:02:59.7]} 6... e5 {[%clk 0:02:52.5]}
7. Nf3 {[%clk 0:02:58.3]} 7... Be7 {[%clk 0:02:51]} 8. Bg5 {[%clk 0:02:57.4]}
8... Nbd7 {[%clk 0:02:49.2]} 9. Nd2 {[%clk 0:02:38.1]} 9... h6 {[%clk
0:02:36.6]} 10. Bh4 {[%clk 0:02:30.2]} 10... O-O {[%clk 0:02:12.7]} 11. Nc4
{[%clk 0:02:18.6]} 11... Qc7 {[%clk 0:01:31.8]} 12. Ne3 {[%clk 0:02:14.1]} 12...
Nb6 {[%clk 0:01:05.2]} 13. a5 {[%clk 0:02:10.6]} 13... Nbd7 {[%clk 0:01:04.5]}
14. Ncd5 {[%clk 0:02:00.7]} 14... Qd8 {[%clk 0:01:03.9]} 15. Nxe7+ {[%clk
0:01:59.8]} 15... Qxe7 {[%clk 0:01:03.6]} 16. Nf5 {[%clk 0:01:59.9]} 16... Qe6
{[%clk 0:01:03.4]} 17. Nxd6 {[%clk 0:01:42.4]} 17... Nc5 {[%clk 0:01:02.6]} 18.
Bc4 {[%clk 0:01:40.5]} 18... Qg4 {[%clk 0:00:56.4]} 19. Qxg4 {[%clk 0:01:26.3]}
19... Bxg4 {[%clk 0:00:52.7]} 20. f3 {[%clk 0:01:23.5]} 20... Be6 {[%clk
0:00:51.3]} 21. Bxe6 {[%clk 0:01:20.5]} 21... fxe6 {[%clk 0:00:52.2]} 22. O-O-O
{[%clk 0:01:16.2]} 22... Rab8 {[%clk 0:00:46.6]} 23. Nc4 {[%clk 0:01:12.8]}
23... Ncd7 {[%clk 0:00:44.8]} 24. Bxf6 {[%clk 0:01:10.8]} 1-0

[Event "Early-Titled-Tuesday-Blitz-February-13-2024"]
[Site "Chess.com"]
[Date "2024.02.13"]
[Round "3"]
[White "bitter-cikolata"]
[Black "Mikasinski"]
[Result "1-0"]
[WhiteElo "2496"]
[BlackElo "2651"]
[TimeControl "180+1"]
[EndTime "8:30:08 PST"]
[Termination "bitter-cikolata won by resignation"]

1. e4 {[%clk 0:03:00.9]} 1... c5 {[%clk 0:03:00]} 2. Nf3 {[%clk 0:03:00]} 2...
d6 {[%clk 0:03:00.6]} 3. d4 {[%clk 0:02:59.5]} 3... cxd4 {[%clk 0:03:01.5]} 4.
Nxd4 {[%clk 0:03:00]} 4... Nf6 {[%clk 0:03:01.5]} 5. Nc3 {[%clk 0:03:00.5]} 5...
g6 {[%clk 0:03:01.8]} 6. Be3 {[%clk 0:02:59.4]} 6... Bg7 {[%clk 0:03:02.3]} 7.
h3 {[%clk 0:02:58.2]} 7... O-O {[%clk 0:03:03]} 8. Bc4 {[%clk 0:02:58.8]} 8...
Nc6 {[%clk 0:03:02.2]} 9. Bb3 {[%clk 0:02:59]} 9... Na5 {[%clk 0:02:59.1]} 10.
O-O {[%clk 0:02:58.9]} 10... Bd7 {[%clk 0:02:59]} 11. Re1 {[%clk 0:02:56.1]}
11... Rc8 {[%clk 0:02:58.8]} 12. Qd3 {[%clk 0:02:55.3]} 12... a6 {[%clk
0:02:55.4]} 13. Nd5 {[%clk 0:02:50.1]} 13... Nxb3 {[%clk 0:02:52.3]} 14. axb3
{[%clk 0:02:41.7]} 14... Re8 {[%clk 0:02:27.9]} 15. c4 {[%clk 0:02:38.4]} 15...
e6 {[%clk 0:02:20.7]} 16. Nxf6+ {[%clk 0:02:36.7]} 16... Qxf6 {[%clk 0:02:20.2]}
17. Rab1 {[%clk 0:02:28.1]} 17... Red8 {[%clk 0:02:14.2]} 18. Nf3 {[%clk
0:02:27]} 18... b5 {[%clk 0:02:03.3]} 19. Bg5 {[%clk 0:02:23.1]} 19... Qxg5
{[%clk 0:01:46.4]} 20. Nxg5 {[%clk 0:02:21.9]} 20... Rc6 {[%clk 0:01:43.2]} 21.
cxb5 {[%clk 0:01:59]} 21... axb5 {[%clk 0:01:41.6]} 22. Rbc1 {[%clk 0:01:59.4]}
22... Rb6 {[%clk 0:01:36.6]} 23. Rc7 {[%clk 0:01:57.7]} 23... Be8 {[%clk
0:01:33.9]} 24. Rec1 {[%clk 0:01:44.4]} 24... Rbb8 {[%clk 0:01:31.2]} 25. R1c2
{[%clk 0:01:38.4]} 25... b4 {[%clk 0:01:29.4]} 26. Qa6 {[%clk 0:01:32.4]} 26...
Be5 {[%clk 0:01:25.3]} 27. Rc8 {[%clk 0:01:25]} 27... Kg7 {[%clk 0:01:11.6]} 28.
Rxd8 {[%clk 0:01:22.7]} 28... Rxd8 {[%clk 0:01:11.3]} 29. Rc8 {[%clk 0:01:23]}
29... Bb5 {[%clk 0:01:03.3]} 30. Qb7 {[%clk 0:01:21.6]} 30... Rxc8 {[%clk
0:00:56]} 31. Qxc8 {[%clk 0:01:22.5]} 31... Bxb2 {[%clk 0:00:55]} 32. Nxe6+
{[%clk 0:01:21.4]} 32... Kf6 {[%clk 0:00:50.7]} 33. Qh8+ {[%clk 0:01:17.7]}
33... Kxe6 {[%clk 0:00:50.9]} 34. Qxb2 {[%clk 0:01:18.6]} 1-0

[Event "Early-Titled-Tuesday-Blitz-February-13-2024"]
[Site "Chess.com"]
[Date "2024.02.13"]
[Round "3"]
[White "Chess_Gainz"]
[Black "Nellichka"]
[Result "1-0"]
[WhiteElo "2544"]
[BlackElo "2068"]
[TimeControl "180+1"]
[EndTime "8:30:08 PST"]
[Termination "Chess_Gainz won by resignation"]

1. e4 {[%clk 0:03:00.9]} 1... e5 {[%clk 0:02:59.1]} 2. Nf3 {[%clk 0:03:00.7]}
2... d5 {[%clk 0:02:58.6]} 3. exd5 {[%clk 0:02:59.6]} 3... e4 {[%clk 0:02:57.7]}
4. Qe2 {[%clk 0:02:59.9]} 4... Qe7 {[%clk 0:02:55.7]} 5. Nd4 {[%clk 0:02:48.3]}
5... Qe5 {[%clk 0:02:54.3]} 6. Qe3 {[%clk 0:02:35.5]} 6... Bc5 {[%clk
0:02:41.1]} 7. Nf3 {[%clk 0:02:34.3]} 7... Qxd5 {[%clk 0:02:34.8]} 8. d4 {[%clk
0:02:34]} 8... Be7 {[%clk 0:02:30.5]} 9. Nc3 {[%clk 0:02:26.6]} 9... Qa5 {[%clk
0:02:20.1]} 10. Qxe4 {[%clk 0:02:16]} 10... Nf6 {[%clk 0:02:19.4]} 11. Qe5
{[%clk 0:02:16.2]} 11... c5 {[%clk 0:02:10.7]} 12. Bd2 {[%clk 0:01:55.5]} 12...
Nc6 {[%clk 0:01:58.8]} 13. Bb5 {[%clk 0:01:21.2]} 13... O-O {[%clk 0:01:49.9]}
14. Bxc6 {[%clk 0:01:18.7]} 14... bxc6 {[%clk 0:01:46.5]} 15. Nd5 {[%clk
0:01:06.9]} 15... Qd8 {[%clk 0:01:22.8]} 16. Nxe7+ {[%clk 0:01:05.5]} 16... Kh8
{[%clk 0:01:22.4]} 17. Bg5 {[%clk 0:00:39.5]} 17... Nd7 {[%clk 0:01:13.1]} 18.
Ng6+ {[%clk 0:00:39.2]} 18... fxg6 {[%clk 0:01:07.1]} 19. Bxd8 {[%clk
0:00:39.4]} 19... Nxe5 {[%clk 0:01:06.8]} 20. Nxe5 {[%clk 0:00:40.1]} 20... Rxd8
{[%clk 0:01:06.3]} 21. Nf7+ {[%clk 0:00:40.4]} 1-0

[Event "Early-Titled-Tuesday-Blitz-February-13-2024"]
[Site "Chess.com"]
[Date "2024.02.13"]
[Round "3"]
[White "Igor_Lysyj"]
[Black "Chandradi"]
[Result "1-0"]
[WhiteElo "2854"]
[BlackElo "2517"]
[TimeControl "180+1"]
[EndTime "8:30:09 PST"]
[Termination "Igor_Lysyj won by resignation"]

1. d4 {[%clk 0:03:00.1]} 1... Nf6 {[%clk 0:02:59.9]} 2. c4 {[%clk 0:02:59.9]}
2... e6 {[%clk 0:03:00.2]} 3. Nf3 {[%clk 0:02:59.6]} 3... b6 {[%clk 0:03:00.2]}
4. a3 {[%clk 0:02:58.4]} 4... Bb7 {[%clk 0:03:00.2]} 5. Nc3 {[%clk 0:02:58.2]}
5... Ne4 {[%clk 0:03:00.5]} 6. Nxe4 {[%clk 0:02:57.1]} 6... Bxe4 {[%clk
0:03:01.4]} 7. e3 {[%clk 0:02:51.6]} 7... Be7 {[%clk 0:03:01]} 8. Bd2 {[%clk
0:02:51]} 8... O-O {[%clk 0:03:00.3]} 9. Bc3 {[%clk 0:02:51.4]} 9... d6 {[%clk
0:02:56.8]} 10. Bd3 {[%clk 0:02:50.9]} 10... Bxd3 {[%clk 0:02:56.8]} 11. Qxd3
{[%clk 0:02:50.9]} 11... Bf6 {[%clk 0:02:57.1]} 12. O-O {[%clk 0:02:48.4]} 12...
Qe7 {[%clk 0:02:56.6]} 13. e4 {[%clk 0:02:44.8]} 13... e5 {[%clk 0:02:55.5]} 14.
d5 {[%clk 0:02:43.5]} 14... a5 {[%clk 0:02:55.2]} 15. b4 {[%clk 0:02:43.7]}
15... axb4 {[%clk 0:02:53.8]} 16. axb4 {[%clk 0:02:43.8]} 16... Nd7 {[%clk
0:02:54.3]} 17. Nd2 {[%clk 0:02:40.3]} 17... Bg5 {[%clk 0:02:48.1]} 18. Nb3
{[%clk 0:02:40.3]} 18... f5 {[%clk 0:02:44.5]} 19. exf5 {[%clk 0:02:37]} 19...
e4 {[%clk 0:02:43.9]} 20. Qe2 {[%clk 0:02:33.8]} 20... Rxa1 {[%clk 0:02:42.7]}
21. Bxa1 {[%clk 0:02:31.8]} 21... Rxf5 {[%clk 0:02:40.8]} 22. Nd4 {[%clk
0:02:31.6]} 22... Rf7 {[%clk 0:02:20.8]} 23. Ne6 {[%clk 0:02:27.1]} 23... e3
{[%clk 0:01:44.2]} 24. f4 {[%clk 0:02:19.4]} 24... Bf6 {[%clk 0:01:42.6]} 25.
Qxe3 {[%clk 0:02:19]} 25... Bxa1 {[%clk 0:01:41.9]} 26. Rxa1 {[%clk 0:02:18.4]}
26... Nf8 {[%clk 0:01:40.9]} 27. Ra8 {[%clk 0:02:16.4]} 27... h6 {[%clk
0:01:39.8]} 28. Qe4 {[%clk 0:01:55.6]} 28... Qf6 {[%clk 0:01:34.2]} 29. h3
{[%clk 0:01:53.1]} 29... g6 {[%clk 0:01:18.7]} 30. Re8 {[%clk 0:01:36.3]} 30...
Re7 {[%clk 0:00:39.6]} 31. Rxf8+ {[%clk 0:01:31.5]} 31... Qxf8 {[%clk
0:00:39.1]} 32. Qxg6+ {[%clk 0:01:31.6]} 32... Kh8 {[%clk 0:00:39.4]} 33. Nxf8
{[%clk 0:01:31.2]} 1-0

[Event "Early-Titled-Tuesday-Blitz-February-13-2024"]
[Site "Chess.com"]
[Date "2024.02.13"]
[Round "3"]
[White "isaak2009"]
[Black "ChristopherYoo"]
[Result "0-1"]
[WhiteElo "2680"]
[BlackElo "2980"]
[TimeControl "180+1"]
[EndTime "8:30:10 PST"]
[Termination "ChristopherYoo won by resignation"]

1. e4 {[%clk 0:03:00]} 1... c6 {[%clk 0:02:56.5]} 2. d4 {[%clk 0:02:59.9]} 2...
d5 {[%clk 0:02:56.8]} 3. e5 {[%clk 0:03:00.6]} 3... Bf5 {[%clk 0:02:57]} 4. Nc3
{[%clk 0:03:00.8]} 4... e6 {[%clk 0:02:56.2]} 5. g4 {[%clk 0:03:00.8]} 5... Bg6
{[%clk 0:02:56.2]} 6. Nge2 {[%clk 0:03:01.5]} 6... h6 {[%clk 0:02:55.6]} 7. h4
{[%clk 0:02:59]} 7... c5 {[%clk 0:02:54.2]} 8. Be3 {[%clk 0:02:52.7]} 8... Nc6
{[%clk 0:02:53.9]} 9. f4 {[%clk 0:02:52.3]} 9... h5 {[%clk 0:02:25.8]} 10. f5
{[%clk 0:02:48.4]} 10... exf5 {[%clk 0:02:25.8]} 11. gxf5 {[%clk 0:02:32.9]}
11... Bxf5 {[%clk 0:02:25.2]} 12. Bg2 {[%clk 0:02:33.8]} 12... Nge7 {[%clk
0:02:19.1]} 13. dxc5 {[%clk 0:02:32.7]} 13... Nxe5 {[%clk 0:02:06.2]} 14. Nxd5
{[%clk 0:02:26.1]} 14... Nxd5 {[%clk 0:02:06]} 15. Qxd5 {[%clk 0:02:22.4]} 15...
Qxd5 {[%clk 0:02:01.2]} 16. Bxd5 {[%clk 0:02:23.3]} 16... O-O-O {[%clk 0:02:01]}
17. O-O-O {[%clk 0:02:18.3]} 17... Bg4 {[%clk 0:01:56.8]} 18. Rhe1 {[%clk
0:01:36.3]} 18... Be7 {[%clk 0:01:54.9]} 19. Rd2 {[%clk 0:00:42.7]} 19... Bxh4
{[%clk 0:01:51.6]} 20. Rh1 {[%clk 0:00:22.7]} 20... Bf6 {[%clk 0:01:48.5]} 21.
Nc3 {[%clk 0:00:20.4]} 21... Nf3 {[%clk 0:01:45.8]} 22. Bxf3 {[%clk 0:00:19.5]}
22... Bxf3 {[%clk 0:01:46.2]} 23. Rf1 {[%clk 0:00:16.1]} 23... Bc6 {[%clk
0:01:46.7]} 24. a4 {[%clk 0:00:04.3]} 24... h4 {[%clk 0:01:46.2]} 25. Nb5 {[%clk
0:00:04.3]} 25... Rxd2 {[%clk 0:01:45.5]} 26. Kxd2 {[%clk 0:00:04.4]} 26... h3
{[%clk 0:01:46.1]} 27. Nd6+ {[%clk 0:00:04.5]} 27... Kd7 {[%clk 0:01:46.6]} 28.
Bf4 {[%clk 0:00:04.6]} 28... h2 {[%clk 0:01:46.3]} 0-1

[Event "Early-Titled-Tuesday-Blitz-February-13-2024"]
[Site "Chess.com"]
[Date "2024.02.13"]
[Round "3"]
[White "abeljusto"]
[Black "calin_dragomirescu"]
[Result "0-1"]
[WhiteElo "2081"]
[BlackElo "2345"]
[TimeControl "180+1"]
[EndTime "8:30:13 PST"]
[Termination "calin_dragomirescu won on time"]

1. e4 {[%clk 0:03:00.9]} 1... g6 {[%clk 0:02:59.6]} 2. d4 {[%clk 0:03:00.4]}
2... Bg7 {[%clk 0:03:00.1]} 3. Nc3 {[%clk 0:02:59.5]} 3... d6 {[%clk 0:03:00.6]}
4. Be3 {[%clk 0:02:59.4]} 4... a6 {[%clk 0:03:00]} 5. Qd2 {[%clk 0:02:57.4]}
5... b5 {[%clk 0:03:00.4]} 6. h4 {[%clk 0:02:53.3]} 6... h5 {[%clk 0:03:00]} 7.
Nh3 {[%clk 0:02:49.8]} 7... Bxh3 {[%clk 0:02:59.3]} 8. Rxh3 {[%clk 0:02:48.8]}
8... Nd7 {[%clk 0:03:00]} 9. Be2 {[%clk 0:02:25.7]} 9... Ngf6 {[%clk 0:03:00]}
10. f3 {[%clk 0:02:19.1]} 10... O-O {[%clk 0:02:59.1]} 11. Nd1 {[%clk
0:02:08.6]} 11... c5 {[%clk 0:02:56.1]} 12. c3 {[%clk 0:02:06.5]} 12... cxd4
{[%clk 0:02:54.6]} 13. cxd4 {[%clk 0:02:06.1]} 13... Rc8 {[%clk 0:02:54]} 14.
Nf2 {[%clk 0:01:54.2]} 14... Nb6 {[%clk 0:02:50.2]} 15. b3 {[%clk 0:01:50.2]}
15... Nfd7 {[%clk 0:02:48.7]} 16. g4 {[%clk 0:01:47.7]} 16... Nf6 {[%clk
0:02:47.4]} 17. gxh5 {[%clk 0:01:36.8]} 17... Nxh5 {[%clk 0:02:47.2]} 18. f4
{[%clk 0:01:30.5]} 18... Nf6 {[%clk 0:02:46.7]} 19. h5 {[%clk 0:01:25.7]} 19...
Qc7 {[%clk 0:02:44]} 20. hxg6 {[%clk 0:01:14]} 20... fxg6 {[%clk 0:02:44.4]} 21.
f5 {[%clk 0:01:06.8]} 21... gxf5 {[%clk 0:02:35.5]} 22. Bh6 {[%clk 0:01:06.4]}
22... Rf7 {[%clk 0:02:30.4]} 23. exf5 {[%clk 0:00:43.9]} 23... Nbd5 {[%clk
0:02:18.2]} 24. Rg3 {[%clk 0:00:35]} 24... Kf8 {[%clk 0:02:16.1]} 25. Bxg7+
{[%clk 0:00:29.3]} 25... Rxg7 {[%clk 0:02:15.8]} 26. Rxg7 {[%clk 0:00:29.6]}
26... Kxg7 {[%clk 0:02:16.4]} 27. Qg5+ {[%clk 0:00:29.8]} 27... Kf8 {[%clk
0:02:14.2]} 28. Qh6+ {[%clk 0:00:20.6]} 28... Ke8 {[%clk 0:02:13.7]} 29. Qh8+
{[%clk 0:00:07.9]} 29... Kd7 {[%clk 0:02:13.7]} 30. Qh3 {[%clk 0:00:05.6]} 30...
Rg8 {[%clk 0:02:02.3]} 31. Qd3 {[%clk 0:00:05.2]} 31... Nb4 {[%clk 0:01:55.9]}
32. Qd2 {[%clk 0:00:04.7]} 32... Nc2+ {[%clk 0:01:55.4]} 0-1

[Event "Early-Titled-Tuesday-Blitz-February-13-2024"]
[Site "Chess.com"]
[Date "2024.02.13"]
[Round "3"]
[White "GoValya"]
[Black "DrCeltic"]
[Result "0-1"]
[WhiteElo "2290"]
[BlackElo "2566"]
[TimeControl "180+1"]
[EndTime "8:30:16 PST"]
[Termination "DrCeltic won by checkmate"]

1. d4 {[%clk 0:03:00.9]} 1... Nf6 {[%clk 0:02:59]} 2. g3 {[%clk 0:03:00.1]} 2...
d5 {[%clk 0:02:59.1]} 3. Bg2 {[%clk 0:03:00.4]} 3... Bf5 {[%clk 0:02:59.5]} 4.
c4 {[%clk 0:02:58.9]} 4... c6 {[%clk 0:02:59.4]} 5. Nc3 {[%clk 0:02:56.5]} 5...
e6 {[%clk 0:02:59.5]} 6. Nf3 {[%clk 0:02:55.4]} 6... h6 {[%clk 0:02:58.9]} 7.
O-O {[%clk 0:02:55.4]} 7... Be7 {[%clk 0:02:59.2]} 8. b3 {[%clk 0:02:53.3]} 8...
Ne4 {[%clk 0:02:56.6]} 9. Bb2 {[%clk 0:02:49.7]} 9... O-O {[%clk 0:02:56.4]} 10.
Nd2 {[%clk 0:02:49.3]} 10... Nxc3 {[%clk 0:02:52]} 11. Bxc3 {[%clk 0:02:50.2]}
11... Nd7 {[%clk 0:02:52.5]} 12. f3 {[%clk 0:02:47.1]} 12... Bg6 {[%clk
0:02:40.6]} 13. e4 {[%clk 0:02:43.9]} 13... c5 {[%clk 0:02:39.9]} 14. f4 {[%clk
0:02:17.2]} 14... cxd4 {[%clk 0:02:31.4]} 15. Bxd4 {[%clk 0:02:16.4]} 15... dxe4
{[%clk 0:02:30.7]} 16. Nxe4 {[%clk 0:02:13]} 16... Qc7 {[%clk 0:02:29]} 17. Qe2
{[%clk 0:02:01.8]} 17... Rad8 {[%clk 0:02:27.9]} 18. Qb2 {[%clk 0:01:48.7]}
18... Bxe4 {[%clk 0:02:15.1]} 19. Bxg7 {[%clk 0:01:14.1]} 19... Bxg2 {[%clk
0:02:13.1]} 20. Bxf8 {[%clk 0:01:02.8]} 20... Bxf8 {[%clk 0:02:09.1]} 21. Qxg2
{[%clk 0:01:02.2]} 21... Bg7 {[%clk 0:02:06.3]} 22. Rad1 {[%clk 0:01:01.3]}
22... Nf6 {[%clk 0:01:55.2]} 23. Rxd8+ {[%clk 0:00:50.3]} 23... Qxd8 {[%clk
0:01:56.1]} 24. Qxb7 {[%clk 0:00:50.6]} 24... Qd4+ {[%clk 0:01:56.2]} 25. Kh1
{[%clk 0:00:40]} 25... Ne4 {[%clk 0:01:54.1]} 26. Qc6 {[%clk 0:00:25.2]} 26...
Qd3 {[%clk 0:01:48.3]} 27. Rg1 {[%clk 0:00:12.2]} 27... Qf3+ {[%clk 0:01:45]}
28. Rg2 {[%clk 0:00:11.1]} 28... Qf1+ {[%clk 0:01:42.4]} 29. Rg1 {[%clk
0:00:10.5]} 29... Nf2# {[%clk 0:01:42.8]} 0-1